[Event "Titled Tuesday Blitz January 17 Early 2023"]
[White "Jenkins, Drake"]
[Black "Sanchez, Robert"]
[WhiteFideId "2022397"]
[BlackFideId "2034360"]
[WhiteElo "2130"]
[BlackElo "1966"]
[Result "0-1"]
[Round "02"]
[TimeControl "180+2"]
[Date "2023.01.17"]
[WhiteClock "0:00:02"]
[BlackClock "0:00:07"]

1. Nf3 {[%clk 0:03:00]}  d5 {[%clk 0:03:00]} 2. c4 {[%clk 0:03:00]}  e6 {[%clk 0:03:00]} 3. g3 {[%clk 0:03:01]}  Nf6 {[%clk 0:03:00]} 4. Bg2 {[%clk 0:03:01]}  Be7 {[%clk 0:03:01]} 5. O-O {[%clk 0:03:01]}  O-O {[%clk 0:03:02]} 6. d3 {[%clk 0:03:01]}  c6 {[%clk 0:03:02]} 7. Nbd2 {[%clk 0:03:01]}  Nbd7 {[%clk 0:03:00]} 8. Rb1 {[%clk 0:03:02]}  a5 {[%clk 0:03:00]} 9. a3 {[%clk 0:03:02]}  c5 {[%clk 0:02:57]} 10. cxd5 {[%clk 0:02:31]}  exd5 {[%clk 0:02:54]} 11. d4 {[%clk 0:02:31]}  c4 {[%clk 0:02:52]} 12. Ne5 {[%clk 0:02:31]}  Nb6 {[%clk 0:02:46]} 13. Ndf3 {[%clk 0:02:25]}  Bf5 {[%clk 0:02:45]} 14. Ra1 {[%clk 0:02:25]}  h6 {[%clk 0:02:37]} 15. Bd2 {[%clk 0:02:08]}  Ne4 {[%clk 0:02:10]} 16. Rc1 {[%clk 0:02:00]}  f6 {[%clk 0:01:52]} 17. Nh4 {[%clk 0:01:38]}  fxe5 {[%clk 0:01:49]} 18. Nxf5 {[%clk 0:01:37]}  Rxf5 {[%clk 0:01:49]} 19. dxe5 {[%clk 0:01:36]}  Rxe5 {[%clk 0:01:39]} 20. Bf4 {[%clk 0:01:22]}  Re6 {[%clk 0:01:33]} 21. Bh3 {[%clk 0:01:19]}  Rf6 {[%clk 0:01:28]} 22. Be5 {[%clk 0:01:14]}  Rf8 {[%clk 0:01:27]} 23. f3 {[%clk 0:01:11]}  Ng5 {[%clk 0:01:22]} 24. Bg2 {[%clk 0:01:09]}  Bc5+ {[%clk 0:01:12]} 25. Kh1 {[%clk 0:01:09]}  Qe7 {[%clk 0:01:05]} 26. f4 {[%clk 0:01:01]}  Ne4 {[%clk 0:01:02]} 27. Qc2 {[%clk 0:00:56]}  Nf2+ {[%clk 0:00:46]} 28. Rxf2 {[%clk 0:00:56]}  Bxf2 {[%clk 0:00:46]} 29. e4 {[%clk 0:00:54]}  Be3 {[%clk 0:00:43]} 30. Re1 {[%clk 0:00:53]}  d4 {[%clk 0:00:43]} 31. Bf1 {[%clk 0:00:40]}  Rac8 {[%clk 0:00:42]} 32. a4 {[%clk 0:00:25]}  Qb4 {[%clk 0:00:38]} 33. Rxe3 {[%clk 0:00:16]}  dxe3 {[%clk 0:00:37]} 34. Bc3 {[%clk 0:00:16]}  Qd6 {[%clk 0:00:29]} 35. Qe2 {[%clk 0:00:12]}  Nxa4 {[%clk 0:00:27]} 36. Be5 {[%clk 0:00:12]}  Qd2 {[%clk 0:00:24]} 37. Qg4 {[%clk 0:00:13]}  Rc7 {[%clk 0:00:12]} 38. Bxc7 {[%clk 0:00:12]}  Qf2 {[%clk 0:00:12]} 39. Be2 {[%clk 0:00:08]}  Rf7 {[%clk 0:00:08]} 40. Be5 {[%clk 0:00:07]}  c3 {[%clk 0:00:07]} 41. bxc3 {[%clk 0:00:04]}  Nc5 {[%clk 0:00:07]} 42. h4 {[%clk 0:00:01]}  Nxe4 {[%clk 0:00:07]} 43. Bc4 {[%clk 0:00:02]}  Nxg3+ {[%clk 0:00:06]} 44. Qxg3 {[%clk 0:00:02]}  Qxg3 {[%clk 0:00:07]} 0-1


[Site "https://www.chess.com"]

[Event "Titled Tuesday Blitz January 17 Early 2023"]
[White "Krstulovic, Alex"]
[Black "Hartikainen, Jarmo"]
[WhiteFideId "760056"]
[BlackFideId "503134"]
[WhiteElo "2428"]
[BlackElo "2108"]
[Result "1-0"]
[Round "02"]
[TimeControl "180+2"]
[Date "2023.01.17"]
[WhiteClock "0:01:51"]
[BlackClock "0:00:13"]

1. e4 {[%clk 0:03:00]}  c5 {[%clk 0:02:59]} 2. Nc3 {[%clk 0:03:00]}  e6 {[%clk 0:02:59]} 3. Nge2 {[%clk 0:03:00]}  d5 {[%clk 0:02:59]} 4. exd5 {[%clk 0:03:00]}  exd5 {[%clk 0:03:00]} 5. d4 {[%clk 0:03:01]}  Nf6 {[%clk 0:02:58]} 6. g3 {[%clk 0:02:57]}  Be7 {[%clk 0:02:51]} 7. Bg2 {[%clk 0:02:57]}  Be6 {[%clk 0:02:46]} 8. O-O {[%clk 0:02:56]}  c4 {[%clk 0:02:42]} 9. Bg5 {[%clk 0:02:55]}  Nbd7 {[%clk 0:02:32]} 10. Nf4 {[%clk 0:02:54]}  Nb6 {[%clk 0:02:29]} 11. Re1 {[%clk 0:02:54]}  O-O {[%clk 0:02:07]} 12. a4 {[%clk 0:02:41]}  a5 {[%clk 0:01:59]} 13. Nxe6 {[%clk 0:02:32]}  fxe6 {[%clk 0:02:00]} 14. Rxe6 {[%clk 0:02:33]}  Rf7 {[%clk 0:01:36]} 15. Qe2 {[%clk 0:02:22]}  Rc8 {[%clk 0:01:17]} 16. Re1 {[%clk 0:02:03]}  Ne4 {[%clk 0:00:49]} 17. Bxe7 {[%clk 0:02:00]}  Rxe7 {[%clk 0:00:49]} 18. Rxe7 {[%clk 0:02:01]}  Qxe7 {[%clk 0:00:49]} 19. Nxd5 {[%clk 0:02:00]}  Nxd5 {[%clk 0:00:46]} 20. Bxe4 {[%clk 0:02:00]}  Qd7 {[%clk 0:00:37]} 21. Qf3 {[%clk 0:01:57]}  Nf6 {[%clk 0:00:33]} 22. Bf5 {[%clk 0:01:57]}  Qc6 {[%clk 0:00:25]} 23. d5 {[%clk 0:01:57]}  Qc7 {[%clk 0:00:17]} 24. Bxc8 {[%clk 0:01:55]}  Qxc8 {[%clk 0:00:18]} 25. d6 {[%clk 0:01:54]}  Qd7 {[%clk 0:00:18]} 26. Qf4 {[%clk 0:01:53]}  Nd5 {[%clk 0:00:16]} 27. Qe5 {[%clk 0:01:51]}  Nf6 {[%clk 0:00:14]} 28. Qe7 {[%clk 0:01:50]}  h6 {[%clk 0:00:13]} 29. Qxd7 {[%clk 0:01:50]}  Nxd7 {[%clk 0:00:14]} 30. Re7 {[%clk 0:01:51]}  Nf6 {[%clk 0:00:13]} 31. d7 {[%clk 0:01:51]} 1-0


[Site "https://www.chess.com"]

[Event "Titled Tuesday Blitz January 17 Early 2023"]
[White "Tymrakiewicz, Rafal"]
[Black "Smietanska, Wiktoria"]
[WhiteFideId "1108832"]
[BlackFideId "21869359"]
[WhiteElo "2144"]
[BlackElo "1936"]
[Result "1-0"]
[Round "02"]
[TimeControl "180+2"]
[Date "2023.01.17"]
[WhiteClock "0:00:25"]
[BlackClock "0:00:02"]

1. d4 {[%clk 0:02:59]}  Nf6 {[%clk 0:02:59]} 2. Bg5 {[%clk 0:02:59]}  c5 {[%clk 0:02:56]} 3. d5 {[%clk 0:02:58]}  Qb6 {[%clk 0:02:52]} 4. Bc1 {[%clk 0:02:58]}  d6 {[%clk 0:02:51]} 5. Nc3 {[%clk 0:02:58]}  g6 {[%clk 0:02:47]} 6. e4 {[%clk 0:02:58]}  Bg7 {[%clk 0:02:47]} 7. h3 {[%clk 0:02:58]}  O-O {[%clk 0:02:47]} 8. Nf3 {[%clk 0:02:58]}  a6 {[%clk 0:02:40]} 9. a4 {[%clk 0:02:57]}  Nbd7 {[%clk 0:02:24]} 10. Be2 {[%clk 0:02:52]}  Nh5 {[%clk 0:01:46]} 11. O-O {[%clk 0:02:47]}  Ne5 {[%clk 0:01:22]} 12. Ne1 {[%clk 0:02:34]}  Nf6 {[%clk 0:01:16]} 13. f4 {[%clk 0:02:34]}  Ned7 {[%clk 0:01:11]} 14. Nf3 {[%clk 0:02:35]}  e6 {[%clk 0:00:56]} 15. Kh2 {[%clk 0:02:23]}  exd5 {[%clk 0:00:17]} 16. exd5 {[%clk 0:02:24]}  Re8 {[%clk 0:00:16]} 17. Nd2 {[%clk 0:02:14]}  Qc7 {[%clk 0:00:11]} 18. Bf3 {[%clk 0:01:53]}  b6 {[%clk 0:00:07]} 19. Nc4 {[%clk 0:01:48]}  Bb7 {[%clk 0:00:05]} 20. f5 {[%clk 0:01:39]}  Ne5 {[%clk 0:00:03]} 21. Nxe5 {[%clk 0:01:37]}  Rxe5 {[%clk 0:00:02]} 22. fxg6 {[%clk 0:01:35]}  fxg6 {[%clk 0:00:03]} 23. Bf4 {[%clk 0:01:35]}  Re7 {[%clk 0:00:03]} 24. Qd2 {[%clk 0:01:32]}  Nd7 {[%clk 0:00:03]} 25. Ne4 {[%clk 0:01:25]}  Ne5 {[%clk 0:00:03]} 26. Ng5 {[%clk 0:01:21]}  Bc8 {[%clk 0:00:03]} 27. Be2 {[%clk 0:01:03]}  h6 {[%clk 0:00:02]} 28. Ne6 {[%clk 0:01:01]}  Bxe6 {[%clk 0:00:02]} 29. dxe6 {[%clk 0:01:02]}  g5 {[%clk 0:00:02]} 30. Bg3 {[%clk 0:00:59]}  Rae8 {[%clk 0:00:01]} 31. Qd5 {[%clk 0:00:56]}  Kh8 {[%clk 0:00:01]} 32. Bh5 {[%clk 0:00:54]}  Rxe6 {[%clk 0:00:02]} 33. Bxe8 {[%clk 0:00:54]}  Rxe8 {[%clk 0:00:02]} 34. Rae1 {[%clk 0:00:48]}  b5 {[%clk 0:00:02]} 35. axb5 {[%clk 0:00:48]}  axb5 {[%clk 0:00:03]} 36. b3 {[%clk 0:00:34]}  b4 {[%clk 0:00:02]} 37. Rd1 {[%clk 0:00:33]}  Rd8 {[%clk 0:00:02]} 38. Rfe1 {[%clk 0:00:28]}  Qe7 {[%clk 0:00:02]} 39. Bxe5 {[%clk 0:00:25]}  Bxe5+ {[%clk 0:00:02]} 40. Rxe5 {[%clk 0:00:25]}  Qxe5+ {[%clk 0:00:02]} 41. Qxe5+ {[%clk 0:00:25]}  dxe5 {[%clk 0:00:02]} 42. Rxd8+ {[%clk 0:00:25]} 1-0


[Site "https://www.chess.com"]

[Event "Titled Tuesday Blitz January 17 Early 2023"]
[White "Baches Garcia, Guillermo"]
[Black "Kuchava, Ana"]
[WhiteFideId "2209764"]
[BlackFideId "13605348"]
[WhiteElo "2327"]
[BlackElo "2101"]
[Result "1/2-1/2"]
[Round "02"]
[TimeControl "180+2"]
[Date "2023.01.17"]
[WhiteClock "0:00:13"]
[BlackClock "0:00:04"]

1. e4 {[%clk 0:03:00]}  c5 {[%clk 0:02:57]} 2. Nf3 {[%clk 0:03:00]}  d6 {[%clk 0:02:57]} 3. d4 {[%clk 0:03:00]}  cxd4 {[%clk 0:02:58]} 4. Nxd4 {[%clk 0:03:01]}  Nf6 {[%clk 0:02:55]} 5. Nc3 {[%clk 0:03:01]}  Nc6 {[%clk 0:02:56]} 6. Nd5 {[%clk 0:02:59]}  e6 {[%clk 0:02:12]} 7. Nxf6+ {[%clk 0:02:59]}  Qxf6 {[%clk 0:02:13]} 8. Nb5 {[%clk 0:02:59]}  Qd8 {[%clk 0:02:10]} 9. c4 {[%clk 0:02:58]}  a6 {[%clk 0:02:10]} 10. Nc3 {[%clk 0:02:58]}  Be7 {[%clk 0:02:10]} 11. Be2 {[%clk 0:02:59]}  O-O {[%clk 0:02:10]} 12. O-O {[%clk 0:02:59]}  Qc7 {[%clk 0:02:08]} 13. Be3 {[%clk 0:02:57]}  Bd7 {[%clk 0:02:02]} 14. Rc1 {[%clk 0:02:55]}  Rac8 {[%clk 0:02:01]} 15. Na4 {[%clk 0:02:42]}  Ne5 {[%clk 0:01:39]} 16. Nb6 {[%clk 0:02:36]}  Rcd8 {[%clk 0:01:38]} 17. f4 {[%clk 0:02:29]}  Ng6 {[%clk 0:01:29]} 18. Nxd7 {[%clk 0:02:23]}  Rxd7 {[%clk 0:01:27]} 19. Qb3 {[%clk 0:02:19]}  Qc6 {[%clk 0:01:21]} 20. Bd3 {[%clk 0:02:13]}  Bf6 {[%clk 0:01:13]} 21. Rf2 {[%clk 0:02:07]}  h6 {[%clk 0:01:00]} 22. g3 {[%clk 0:02:06]}  Rfd8 {[%clk 0:00:43]} 23. Qb6 {[%clk 0:01:58]}  Qxb6 {[%clk 0:00:42]} 24. Bxb6 {[%clk 0:01:59]}  Rc8 {[%clk 0:00:42]} 25. Rfc2 {[%clk 0:01:56]}  Ne7 {[%clk 0:00:38]} 26. Kf2 {[%clk 0:01:45]}  Nc6 {[%clk 0:00:35]} 27. a3 {[%clk 0:01:36]}  Bd4+ {[%clk 0:00:31]} 28. Bxd4 {[%clk 0:01:36]}  Nxd4 {[%clk 0:00:32]} 29. Rc3 {[%clk 0:01:36]}  e5 {[%clk 0:00:32]} 30. b4 {[%clk 0:01:34]}  Kf8 {[%clk 0:00:30]} 31. Bf1 {[%clk 0:01:33]}  Ke7 {[%clk 0:00:29]} 32. Bh3 {[%clk 0:01:33]}  f5 {[%clk 0:00:25]} 33. Bxf5 {[%clk 0:01:27]}  Nxf5 {[%clk 0:00:24]} 34. exf5 {[%clk 0:01:28]}  exf4 {[%clk 0:00:25]} 35. gxf4 {[%clk 0:01:22]}  Kf6 {[%clk 0:00:25]} 36. Rd3 {[%clk 0:01:15]}  Kxf5 {[%clk 0:00:25]} 37. Rd5+ {[%clk 0:01:15]}  Ke6 {[%clk 0:00:24]} 38. Re1+ {[%clk 0:01:15]}  Kf6 {[%clk 0:00:25]} 39. Re4 {[%clk 0:01:09]}  Rc6 {[%clk 0:00:24]} 40. c5 {[%clk 0:01:06]}  Re7 {[%clk 0:00:17]} 41. cxd6 {[%clk 0:00:45]}  Rd7 {[%clk 0:00:07]} 42. Red4 {[%clk 0:00:42]}  Ke6 {[%clk 0:00:05]} 43. f5+ {[%clk 0:00:42]}  Kf6 {[%clk 0:00:04]} 44. Ke3 {[%clk 0:00:39]}  Rc3+ {[%clk 0:00:05]} 45. Ke4 {[%clk 0:00:38]}  Rxa3 {[%clk 0:00:04]} 46. Re5 {[%clk 0:00:38]}  Ra1 {[%clk 0:00:04]} 47. Re6+ {[%clk 0:00:38]}  Kf7 {[%clk 0:00:04]} 48. Kd5 {[%clk 0:00:38]}  Rc1 {[%clk 0:00:03]} 49. h4 {[%clk 0:00:36]}  Rf1 {[%clk 0:00:04]} 50. Re5 {[%clk 0:00:34]}  Kf6 {[%clk 0:00:03]} 51. Re6+ {[%clk 0:00:34]}  Kf7 {[%clk 0:00:04]} 52. Re5 {[%clk 0:00:27]}  Kf6 {[%clk 0:00:04]} 53. Re6+ {[%clk 0:00:13]}  Kf7 {[%clk 0:00:04]} 1/2-1/2


[Site "https://www.chess.com"]

[Event "Titled Tuesday Blitz January 17 Early 2023"]
[White "Clawitter, Craig"]
[Black "Kukula, Pawel"]
[WhiteFideId "2023105"]
[BlackFideId "1115081"]
[WhiteElo "2050"]
[BlackElo "2135"]
[Result "0-1"]
[Round "02"]
[TimeControl "180+2"]
[Date "2023.01.17"]
[WhiteClock "0:00:03"]
[BlackClock "0:00:24"]

1. e4 {[%clk 0:02:57]}  c5 {[%clk 0:02:58]} 2. Nf3 {[%clk 0:02:51]}  Nc6 {[%clk 0:02:58]} 3. d4 {[%clk 0:02:52]}  cxd4 {[%clk 0:02:59]} 4. Nxd4 {[%clk 0:02:52]}  Nf6 {[%clk 0:02:59]} 5. Nc3 {[%clk 0:02:53]}  d6 {[%clk 0:02:59]} 6. Bc4 {[%clk 0:02:52]}  e6 {[%clk 0:02:59]} 7. Be3 {[%clk 0:02:51]}  a6 {[%clk 0:02:59]} 8. Qe2 {[%clk 0:02:51]}  Qc7 {[%clk 0:02:59]} 9. Bb3 {[%clk 0:02:50]}  Na5 {[%clk 0:02:59]} 10. O-O-O {[%clk 0:02:48]}  b5 {[%clk 0:02:59]} 11. f3 {[%clk 0:02:40]}  Bb7 {[%clk 0:02:53]} 12. Kb1 {[%clk 0:02:37]}  Nxb3 {[%clk 0:02:45]} 13. axb3 {[%clk 0:02:38]}  Be7 {[%clk 0:02:42]} 14. g4 {[%clk 0:02:36]}  Nd7 {[%clk 0:02:42]} 15. h4 {[%clk 0:02:24]}  b4 {[%clk 0:02:40]} 16. Na4 {[%clk 0:02:24]}  Nc5 {[%clk 0:02:40]} 17. h5 {[%clk 0:01:41]}  Qa5 {[%clk 0:02:29]} 18. g5 {[%clk 0:01:21]}  Nxa4 {[%clk 0:01:09]} 19. bxa4 {[%clk 0:01:22]}  Bxg5 {[%clk 0:01:09]} 20. h6 {[%clk 0:01:01]}  gxh6 {[%clk 0:01:00]} 21. f4 {[%clk 0:00:59]}  Be7 {[%clk 0:01:00]} 22. Nb3 {[%clk 0:00:20]}  Qxa4 {[%clk 0:00:55]} 23. Rxh6 {[%clk 0:00:12]}  Bxe4 {[%clk 0:00:36]} 24. Bd4 {[%clk 0:00:12]}  Bf5 {[%clk 0:00:36]} 25. Bxh8 {[%clk 0:00:11]}  Qxb3 {[%clk 0:00:35]} 26. Bd4 {[%clk 0:00:07]}  Rc8 {[%clk 0:00:34]} 27. Rd2 {[%clk 0:00:07]}  Qa4 {[%clk 0:00:24]} 28. Rh1 {[%clk 0:00:05]}  b3 {[%clk 0:00:24]} 29. Rg1 {[%clk 0:00:04]}  Qa2+ {[%clk 0:00:23]} 30. Kc1 {[%clk 0:00:03]}  Qa1# {[%clk 0:00:24]} 0-1


[Site "https://www.chess.com"]

[Event "Titled Tuesday Blitz January 17 Early 2023"]
[White "Tokhirjonova, Gulrukhbegim"]
[Black "Warchol, Kamil"]
[WhiteFideId "14203626"]
[BlackFideId "21858241"]
[WhiteElo "2340"]
[BlackElo "2173"]
[Result "1/2-1/2"]
[Round "02"]
[TimeControl "180+2"]
[Date "2023.01.17"]
[WhiteClock "0:00:13"]
[BlackClock "0:00:15"]

1. e4 {[%clk 0:03:00]}  c5 {[%clk 0:02:40]} 2. Nf3 {[%clk 0:03:00]}  d6 {[%clk 0:02:01]} 3. d4 {[%clk 0:03:00]}  cxd4 {[%clk 0:02:01]} 4. Nxd4 {[%clk 0:03:00]}  Nf6 {[%clk 0:02:00]} 5. Bd3 {[%clk 0:02:59]}  Nc6 {[%clk 0:01:58]} 6. Nf3 {[%clk 0:02:58]}  e6 {[%clk 0:01:49]} 7. O-O {[%clk 0:02:57]}  Be7 {[%clk 0:01:47]} 8. c4 {[%clk 0:02:57]}  O-O {[%clk 0:01:45]} 9. Nc3 {[%clk 0:02:57]}  b6 {[%clk 0:01:22]} 10. Bf4 {[%clk 0:02:54]}  a6 {[%clk 0:01:16]} 11. Rc1 {[%clk 0:02:53]}  Bb7 {[%clk 0:01:13]} 12. a3 {[%clk 0:02:53]}  Nd7 {[%clk 0:01:09]} 13. b4 {[%clk 0:02:51]}  Nce5 {[%clk 0:01:07]} 14. Bg3 {[%clk 0:02:22]}  Rc8 {[%clk 0:01:02]} 15. Qe2 {[%clk 0:02:19]}  Qc7 {[%clk 0:00:53]} 16. Na4 {[%clk 0:02:03]}  Rfd8 {[%clk 0:00:49]} 17. Nd4 {[%clk 0:01:59]}  Nxd3 {[%clk 0:00:27]} 18. Qxd3 {[%clk 0:01:59]}  Ne5 {[%clk 0:00:27]} 19. Qe2 {[%clk 0:01:45]}  Nxc4 {[%clk 0:00:21]} 20. Nxb6 {[%clk 0:01:35]}  Qxb6 {[%clk 0:00:18]} 21. Rxc4 {[%clk 0:01:35]}  Rxc4 {[%clk 0:00:17]} 22. Qxc4 {[%clk 0:01:35]}  d5 {[%clk 0:00:17]} 23. exd5 {[%clk 0:01:31]}  Bxd5 {[%clk 0:00:16]} 24. Qc7 {[%clk 0:01:20]}  Qxc7 {[%clk 0:00:15]} 25. Bxc7 {[%clk 0:01:21]}  Rc8 {[%clk 0:00:15]} 26. Bf4 {[%clk 0:01:11]}  h6 {[%clk 0:00:08]} 27. Rc1 {[%clk 0:01:09]}  Rxc1+ {[%clk 0:00:07]} 28. Bxc1 {[%clk 0:01:10]}  Kf8 {[%clk 0:00:08]} 29. f3 {[%clk 0:01:07]}  Ke8 {[%clk 0:00:08]} 30. Kf2 {[%clk 0:01:07]}  Kd7 {[%clk 0:00:09]} 31. Ke3 {[%clk 0:01:08]}  Kc7 {[%clk 0:00:09]} 32. Bd2 {[%clk 0:01:04]}  Kb6 {[%clk 0:00:09]} 33. a4 {[%clk 0:01:04]}  Kb7 {[%clk 0:00:08]} 34. Kd3 {[%clk 0:01:02]}  Bf6 {[%clk 0:00:08]} 35. h3 {[%clk 0:00:34]}  Bxd4 {[%clk 0:00:07]} 36. Kxd4 {[%clk 0:00:35]}  Bb3 {[%clk 0:00:07]} 37. a5 {[%clk 0:00:34]}  Kc6 {[%clk 0:00:07]} 38. h4 {[%clk 0:00:31]}  Bd5 {[%clk 0:00:06]} 39. Bc3 {[%clk 0:00:28]}  f6 {[%clk 0:00:06]} 40. Bd2 {[%clk 0:00:22]}  Kb5 {[%clk 0:00:06]} 41. Kc3 {[%clk 0:00:21]}  Kc6 {[%clk 0:00:06]} 42. Be3 {[%clk 0:00:20]}  Kb5 {[%clk 0:00:06]} 43. Bc5 {[%clk 0:00:21]}  Kc6 {[%clk 0:00:06]} 44. Bf8 {[%clk 0:00:21]}  g6 {[%clk 0:00:05]} 45. Bxh6 {[%clk 0:00:21]}  e5 {[%clk 0:00:06]} 46. Bg7 {[%clk 0:00:21]}  e4 {[%clk 0:00:05]} 47. fxe4 {[%clk 0:00:20]}  Bxe4 {[%clk 0:00:05]} 48. g3 {[%clk 0:00:21]}  f5 {[%clk 0:00:04]} 49. Bf8 {[%clk 0:00:21]}  Bf3 {[%clk 0:00:04]} 50. Kd4 {[%clk 0:00:21]}  Bh5 {[%clk 0:00:03]} 51. Ke5 {[%clk 0:00:22]}  Kb5 {[%clk 0:00:04]} 52. Kf6 {[%clk 0:00:23]}  Kc6 {[%clk 0:00:04]} 53. Bc5 {[%clk 0:00:21]}  Kb5 {[%clk 0:00:04]} 54. Ke6 {[%clk 0:00:20]}  Kc6 {[%clk 0:00:04]} 55. Ke5 {[%clk 0:00:21]}  Kb5 {[%clk 0:00:05]} 56. Kd6 {[%clk 0:00:21]}  Bf3 {[%clk 0:00:03]} 57. Kc7 {[%clk 0:00:20]}  Bh5 {[%clk 0:00:04]} 58. Be7 {[%clk 0:00:20]}  Bg4 {[%clk 0:00:05]} 59. Kb7 {[%clk 0:00:18]}  Bh5 {[%clk 0:00:06]} 60. Kc8 {[%clk 0:00:18]}  Bf3 {[%clk 0:00:06]} 61. Kd8 {[%clk 0:00:18]}  Bh5 {[%clk 0:00:07]} 62. Ke8 {[%clk 0:00:18]}  Bg4 {[%clk 0:00:08]} 63. Kf7 {[%clk 0:00:18]}  Bh5 {[%clk 0:00:08]} 64. Kf6 {[%clk 0:00:19]}  Kc4 {[%clk 0:00:08]} 65. Ke5 {[%clk 0:00:19]}  Kb5 {[%clk 0:00:09]} 66. Kf4 {[%clk 0:00:19]}  Kc4 {[%clk 0:00:09]} 67. Ke5 {[%clk 0:00:19]}  Kb5 {[%clk 0:00:09]} 68. Kd4 {[%clk 0:00:20]}  Bg4 {[%clk 0:00:08]} 69. Bc5 {[%clk 0:00:19]}  Bh5 {[%clk 0:00:09]} 70. Bd6 {[%clk 0:00:19]}  Bg4 {[%clk 0:00:10]} 71. Bc5 {[%clk 0:00:18]}  Bh5 {[%clk 0:00:11]} 72. Kd5 {[%clk 0:00:18]}  Bg4 {[%clk 0:00:12]} 73. Kd6 {[%clk 0:00:18]}  Bh5 {[%clk 0:00:12]} 74. Kc7 {[%clk 0:00:18]}  Bg4 {[%clk 0:00:13]} 75. Kd7 {[%clk 0:00:18]}  Bh5 {[%clk 0:00:13]} 76. Ke7 {[%clk 0:00:19]}  Bg4 {[%clk 0:00:13]} 77. Kf6 {[%clk 0:00:20]}  Bh5 {[%clk 0:00:13]} 78. Kg5 {[%clk 0:00:21]}  Kc4 {[%clk 0:00:13]} 79. Kf4 {[%clk 0:00:20]}  Kb5 {[%clk 0:00:13]} 80. g4 {[%clk 0:00:15]}  Bxg4 {[%clk 0:00:13]} 81. Kg5 {[%clk 0:00:14]}  Bh5 {[%clk 0:00:13]} 82. Kf4 {[%clk 0:00:15]}  Kc4 {[%clk 0:00:13]} 83. Kg5 {[%clk 0:00:15]}  Kb5 {[%clk 0:00:14]} 84. Kf4 {[%clk 0:00:14]}  Kc6 {[%clk 0:00:15]} 85. Ke5 {[%clk 0:00:13]}  Kb5 {[%clk 0:00:15]} 86. Kf4 {[%clk 0:00:13]} 1/2-1/2


[Site "https://www.chess.com"]

[Event "Titled Tuesday Blitz January 17 Early 2023"]
[White "Jovic, Stanoje"]
[Black "Fajdetic, Hrvoje"]
[WhiteFideId "905020"]
[BlackFideId "14501945"]
[WhiteElo "2075"]
[BlackElo "2151"]
[Result "1-0"]
[Round "02"]
[TimeControl "180+2"]
[Date "2023.01.17"]
[WhiteClock "0:00:30"]
[BlackClock "0:00:09"]

1. c4 {[%clk 0:03:00]}  f5 {[%clk 0:02:54]} 2. g3 {[%clk 0:03:00]}  Nf6 {[%clk 0:02:51]} 3. Bg2 {[%clk 0:03:00]}  e5 {[%clk 0:02:51]} 4. Nh3 {[%clk 0:02:58]}  d6 {[%clk 0:02:51]} 5. O-O {[%clk 0:02:58]}  Be7 {[%clk 0:02:52]} 6. f4 {[%clk 0:02:57]}  O-O {[%clk 0:02:50]} 7. Nc3 {[%clk 0:02:56]}  e4 {[%clk 0:02:50]} 8. d3 {[%clk 0:02:56]}  exd3 {[%clk 0:02:47]} 9. exd3 {[%clk 0:02:53]}  c6 {[%clk 0:02:35]} 10. Qb3 {[%clk 0:02:40]}  Qb6+ {[%clk 0:02:32]} 11. Qxb6 {[%clk 0:02:37]}  axb6 {[%clk 0:02:32]} 12. Be3 {[%clk 0:02:34]}  Nbd7 {[%clk 0:02:28]} 13. Nf2 {[%clk 0:02:33]}  Re8 {[%clk 0:02:21]} 14. Rfe1 {[%clk 0:02:33]}  Nc5 {[%clk 0:02:04]} 15. Bxc5 {[%clk 0:02:23]}  bxc5 {[%clk 0:02:05]} 16. Re2 {[%clk 0:02:13]}  Bd7 {[%clk 0:02:04]} 17. Rae1 {[%clk 0:02:12]}  Bf8 {[%clk 0:01:54]} 18. Rxe8 {[%clk 0:02:11]}  Rxe8 {[%clk 0:01:55]} 19. Rxe8 {[%clk 0:02:10]}  Bxe8 {[%clk 0:01:54]} 20. Kf1 {[%clk 0:02:08]}  Bh5 {[%clk 0:01:51]} 21. Ke1 {[%clk 0:02:06]}  Kf7 {[%clk 0:01:48]} 22. Kd2 {[%clk 0:02:02]}  Ke6 {[%clk 0:01:47]} 23. a4 {[%clk 0:02:00]}  d5 {[%clk 0:01:46]} 24. b3 {[%clk 0:01:53]}  h6 {[%clk 0:01:40]} 25. h3 {[%clk 0:01:53]}  g5 {[%clk 0:01:39]} 26. fxg5 {[%clk 0:01:26]}  hxg5 {[%clk 0:01:40]} 27. h4 {[%clk 0:01:25]}  gxh4 {[%clk 0:01:28]} 28. gxh4 {[%clk 0:01:24]}  Bh6+ {[%clk 0:01:29]} 29. Kc2 {[%clk 0:01:18]}  Bf4 {[%clk 0:01:14]} 30. Nh3 {[%clk 0:01:16]}  Bg3 {[%clk 0:01:03]} 31. Ng5+ {[%clk 0:01:15]}  Kd6 {[%clk 0:01:03]} 32. Nf3 {[%clk 0:01:04]}  Bxf3 {[%clk 0:00:49]} 33. Bxf3 {[%clk 0:01:04]}  Bxh4 {[%clk 0:00:49]} 34. Ne2 {[%clk 0:01:03]}  Bg5 {[%clk 0:00:40]} 35. cxd5 {[%clk 0:00:55]}  cxd5 {[%clk 0:00:40]} 36. d4 {[%clk 0:00:53]}  b6 {[%clk 0:00:25]} 37. dxc5+ {[%clk 0:00:52]}  bxc5 {[%clk 0:00:26]} 38. Nc3 {[%clk 0:00:49]}  Ne4 {[%clk 0:00:25]} 39. Nb5+ {[%clk 0:00:41]}  Kc6 {[%clk 0:00:21]} 40. Bh5 {[%clk 0:00:41]}  c4 {[%clk 0:00:18]} 41. b4 {[%clk 0:00:37]}  Be7 {[%clk 0:00:16]} 42. Be8+ {[%clk 0:00:36]}  Kb6 {[%clk 0:00:16]} 43. a5+ {[%clk 0:00:34]}  Ka6 {[%clk 0:00:13]} 44. Nc7+ {[%clk 0:00:32]}  Kb7 {[%clk 0:00:13]} 45. Nxd5 {[%clk 0:00:32]}  Bxb4 {[%clk 0:00:10]} 46. Nxb4 {[%clk 0:00:32]}  f4 {[%clk 0:00:10]} 47. Bc6+ {[%clk 0:00:30]}  Ka7 {[%clk 0:00:09]} 48. Bxe4 {[%clk 0:00:30]} 1-0


[Site "https://www.chess.com"]